Workbook

Sheet ОФО МБДОУ №37
C1: Расчет объема финансового обеспечения на 2023 год
C3: МБДОУ "Детский сад № 37 комбинированного вида" Вахитовского района г.Казани
A5: № стр. | C5: Доп.ЭК | D5: Ассигнования 2022 года (счет ЛАГ,ЛБГ) КЦСР 0210125370, 0210342000, 0210225160, 0260499900; ДКР 302,303,304,305,308,340,347,349, 274,288,292,2Г3) | H5: Расчетная потребность на 2023 год | I5: Смета учреждения на выполнение муниц. задания (счет ЛАГ, ЛБГ), всего: | J5: в том числе | AE5: Контроль распред.ОФО
J6: субвенция РТ | K6: субсидия РТ | L6: бюджета города | M6: род.платы | N6: Выполнение муниципального задания (ЛАГ, ЛБГ)
N7: на выполнение муниципального задания, в пределах норматива (ДКР 302, 303, 304) | W7: доведение до уровня утвержденной тарификации (бюджет) | X7: в том числе | Z7: доведение до уровня утвержденной тарификации (род.плата) | AA7: Сверх-нормативные расходы (счет ЛАГ, ЛБГ) | AB7: Охрана учреждений | AC7: в том числе
N8: ВСЕГО в пределах норматива ОФО: | O8: в том числе: | X8: субсидия РТ ДФК 06000 | Y8: бюджет города ДФК 00000 | AC8: субсидии РТ ДФК 06000 | AD8: бюджет города ДФК 00000
D9: Утвержд. план 2022 | F9: Уточн. план 2022
O10: итого НФЗ | P10: в том числе | R10: итого НСВ: | S10: в том числе | V10: НСИ:
P11: ДФК 00000 | Q11: ДФК 13597 | S11: субсидия РТ ДФК 06000 | T11: бюджет города ДФК 00000 | U11: род.плата ДФК 00000
B12: КЦСР | J12: 0210125370 | K12: 0210342000 | L12: 0210342000 | M12: 0210342000 | O12: 0210125370 | S12: 0210342000 | T12: 0210342000 | U12: 0210342000 | V12: 0210342000 | W12: 0210342000 | X12: 0210342000 | Y12: 0210342000 | Z12: 0210342000 | AA12: 0210342000 | AB12: 0260499900
B13: ДКР | O13: 302 | R13: 303 | V13: 304 | W13: 305 | Z13: 305 | AA13: 308 | AB13: 308
B14: 1 | C14: 2 | D14: 3 | E14: 3_1 | F14: 4 | G14: 4_1 | H14: 5 | I14: 6=7+8+9+10 | J14: 7=11 | K14: 8=13_1+15_1 | L14: 9=13_2+14+15_2+17 | M14: 10=13_3+16 | N14: 11=12+13+14 | O14: 12=12_1+12_2 | P14: 12_1 | Q14: 12_2 | R14: 13=13_1+13_2+13_3 | S14: 13_1 | T14: 13_2 | U14: 13_3 | V14: 14 | W14: 15=15_1+15_2 | X14: 15_1 | Y14: 15_2 | Z14: 16 | AA14: 17=5-11-19 | AB14: 19=19_1+19_2 | AE14: 5-6=0
A15: 1 | B15: Нормативный ОФО ("Барс.МБП"), всего: | D15: х | E15: x | F15: х | G15: x | H15: х | I15: х | J15: х | K15: х | L15: х | M15: - | N15: - | O15: - | P15: х | Q15: х | R15: - | S15: х | T15: х | U15: х | V15: - | W15: х | X15: х | Y15: х | Z15: х | AA15: х | AB15: х | AC15: х | AD15: х | AE15: х
A16: 2 | B16: в т.ч. норматив по питанию | D16: х | E16: - | F16: х | G16: - | H16: х | I16: х | J16: х | K16: х | L16: х | M16: х | N16: х | O16: х | P16: - | Q16: - | R16: - | S16: х | T16: х | U16: х | V16: х | W16: х | X16: х | Y16: х | Z16: х | AA16: х | AB16: х | AC16: х | AD16: х | AE16: х
A17: 3 | B17: КОНТРОЛЬ по нормативу | D17: х | E17: x | F17: х | G17: x | H17: х | I17: х | J17: х | K17: х | L17: х | M17: - | N17: - | O17: - | P17: х | Q17: х | R17: - | S17: х | T17: х | U17: х | V17: - | W17: х | X17: х | Y17: х | Z17: х | AA17: х | AB17: х | AC17: х | AD17: х | AE17: х
A18: 4 | B18: в т.ч. по нормативу питания | D18: х | E18: x | F18: х | G18: x | H18: х | I18: х | J18: х | K18: х | L18: х | M18: х | N18: х | O18: х | P18: х | Q18: х | R18: - | S18: х | T18: х | U18: х | V18: х | W18: х | X18: х | Y18: х | Z18: х | AA18: х | AB18: х | AC18: х | AD18: х | AE18: х
A19: 5 | B19: ВСЕГО в смете учреждения: | D19: 4,241,853.11 | E19: x | F19: 4,398,357.13 | G19: x | H19: 3,162,989.62 | I19: 3,162,989.62 | J19: - | K19: - | L19: 3,162,989.62 | M19: - | N19: - | O19: - | P19: - | Q19: - | R19: - | S19: - | T19: - | U19: - | V19: - | W19: 1,753,132.64 | X19: - | Y19: 1,753,132.64 | Z19: - | AA19: 1,409,856.98 | AB19: - | AC19: - | AD19: - | AE19: -
A20: 6 | B20: в т.ч. Зарплата с начислениями | D20: 2,498,557.74 | E20: x | F20: 2,767,891.62 | G20: x | H20: 1,753,132.64 | I20: 1,753,132.64 | J20: - | K20: - | L20: 1,753,132.64 | M20: - | N20: - | O20: - | P20: - | Q20: - | R20: - | S20: - | T20: - | U20: - | V20: х | W20: 1,753,132.64 | X20: - | Y20: 1,753,132.64 | Z20: - | AA20: х | AB20: - | AC20: - | AD20: - | AE20: -
A21: 7 | B21: прочие расходы (без 211, 213, 223, 225036, 226003,226050, 310, 291001, 291004, 291014, 291025) | D21: 199,384.74 | E21: x | F21: 223,812.51 | G21: x | H21: 100,312.98 | I21: 100,312.98 | J21: - | K21: х | L21: 100,312.98 | M21: - | N21: - | O21: - | P21: - | Q21: - | R21: - | S21: - | T21: - | U21: - | V21: - | W21: х | X21: х | Y21: х | Z21: х | AA21: 100,312.98 | AB21: - | AC21: - | AD21: - | AE21: -
A22: 8 | B22: Раздел 1. ПОЛНОМОЧИЯ РТ | D22: - | E22: x | F22: 24,985.56 | G22: x | H22: - | I22: - | J22: - | K22: - | L22: - | M22: - | N22: - | O22: - | P22: - | Q22: - | R22: - | S22: - | T22: - | U22: - | V22: х | W22: - | X22: - | Y22: - | Z22: - | AA22: - | AB22: х | AC22: х | AD22: х | AE22: -
A23: 9 | B23: 211 "Заработная плата" педагогического персонала | C23: П211004 | D23: - | E23: x | F23: 19,190.14 | G23: x | H23: - | I23: - | J23: - | K23: - | L23: - | M23: - | N23: - | O23: - | P23: - | Q23: - | R23: - | S23: - | T23: - | U23: - | V23: х | W23: - | X23: - | Y23: - | Z23: - | AA23: х | AB23: х | AC23: х | AD23: х | AE23: -
A24: 10 | B24: 213 "Начисления на оплату труда" педагогического персонала | C24: П213004 | D24: - | E24: x | F24: 5,795.42 | G24: x | H24: - | I24: - | J24: - | K24: - | L24: - | M24: - | N24: - | O24: - | P24: - | Q24: - | R24: - | S24: - | T24: - | U24: - | V24: х | W24: - | X24: - | Y24: - | Z24: - | AA24: х | AB24: х | AC24: х | AD24: х | AE24: -
A25: 11 | B25: 346 "Увеличение стоимости прочих оборотных запасов (материалов)" | D25: - | E25: x | F25: - | G25: x | H25: - | I25: - | J25: - | K25: х | L25: - | M25: х | N25: - | O25: - | P25: - | Q25: х | R25: х | S25: х | T25: х | U25: х | V25: х | W25: х | X25: х | Y25: х | Z25: х | AA25: - | AB25: х | AC25: х | AD25: х | AE25: -
A26: 12 | B26: Закупка материалов, используемых в процессе обучения | C26: П346004 | D26: - | E26: x | F26: - | G26: x | H26: - | I26: - | J26: - | K26: х | L26: - | M26: х | N26: - | O26: - | P26: - | Q26: х | R26: х | S26: х | T26: х | U26: х | V26: х | W26: х | X26: х | Y26: х | Z26: х | AA26: - | AB26: х | AC26: х | AD26: х | AE26: -
A27: 13 | B27: Раздел 2. ПОЛНОМОЧИЯ города | D27: 4,241,853.11 | E27: x | F27: 4,373,371.57 | G27: x | H27: 3,162,989.62 | I27: 3,162,989.62 | J27: х | K27: - | L27: 3,162,989.62 | M27: - | N27: - | O27: х | P27: х | Q27: х | R27: - | S27: - | T27: - | U27: - | V27: - | W27: 1,753,132.64 | X27: - | Y27: 1,753,132.64 | Z27: - | AA27: 1,409,856.98 | AB27: - | AC27: - | AD27: - | AE27: -
A28: 14 | B28: Раздел 2.1 ФОТ | D28: 2,498,557.74 | E28: x | F28: 2,742,906.06 | G28: x | H28: 1,753,132.64 | I28: 1,753,132.64 | J28: х | K28: - | L28: 1,753,132.64 | M28: - | N28: - | O28: х | P28: х | Q28: х | R28: - | S28: - | T28: - | U28: - | V28: х | W28: 1,753,132.64 | X28: - | Y28: 1,753,132.64 | Z28: - | AA28: х | AB28: х | AC28: х | AD28: х | AE28: -
A29: 15 | B29: 211 "Заработная плата" вспомогательного персонала | C29: П211005 | D29: 1,919,015.16 | E29: x | F29: 2,112,331.84 | G29: x | H29: 1,346,492.04 | I29: 1,346,492.04 | J29: х | K29: - | L29: 1,346,492.04 | M29: - | N29: - | O29: х | P29: х | Q29: х | R29: - | S29: - | T29: - | U29: - | V29: х | W29: 1,346,492.04 | X29: - | Y29: 1,346,492.04 | Z29: - | AA29: х | AB29: х | AC29: х | AD29: х | AE29: -
A30: 16 | B30: 213 "Начисления на оплату труда" вспомогательного персонала | C30: П213005 | D30: 579,542.58 | E30: x | F30: 630,574.22 | G30: x | H30: 406,640.60 | I30: 406,640.60 | J30: х | K30: - | L30: 406,640.60 | M30: - | N30: - | O30: х | P30: х | Q30: х | R30: - | S30: - | T30: - | U30: - | V30: х | W30: 406,640.60 | X30: - | Y30: 406,640.60 | Z30: - | AA30: х | AB30: х | AC30: х | AD30: х | AE30: -
A31: 17 | B31: Раздел 2.2 Коммунальные услуги | D31: 1,262,223.00 | E31: x | F31: 1,125,390.00 | G31: x | H31: 1,027,894.00 | I31: 1,027,894.00 | J31: х | K31: х | L31: 1,027,894.00 | M31: х | N31: - | O31: х | P31: х | Q31: х | R31: х | S31: х | T31: х | U31: х | V31: - | W31: х | X31: х | Y31: х | Z31: х | AA31: 1,027,894.00 | AB31: х | AC31: х | AD31: х | AE31: -
A32: 18 | B32: 223 "Коммунальные услуги" | D32: 1,262,223.00 | E32: x | F32: 1,125,390.00 | G32: x | H32: 1,027,894.00 | I32: 1,027,894.00 | J32: х | K32: х | L32: 1,027,894.00 | M32: х | N32: - | O32: х | P32: х | Q32: х | R32: х | S32: х | T32: х | U32: х | V32: - | W32: х | X32: х | Y32: х | Z32: х | AA32: 1,027,894.00 | AB32: х | AC32: х | AD32: х | AE32: -
A33: 19 | B33: Электроснабжение | C33: П223001 | D33: 324,732.00 | E33: x | F33: 216,771.00 | G33: x | H33: 122,240.00 | I33: 122,240.00 | J33: х | K33: х | L33: 122,240.00 | M33: х | N33: - | O33: х | P33: х | Q33: х | R33: х | S33: х | T33: х | U33: х | V33: - | W33: х | X33: х | Y33: х | Z33: х | AA33: 122,240.00 | AB33: х | AC33: х | AD33: х | AE33: -
A34: 20 | B34: Теплоснабжение | C34: П223002 | D34: 908,619.00 | E34: x | F34: 908,619.00 | G34: x | H34: 901,285.00 | I34: 901,285.00 | J34: х | K34: х | L34: 901,285.00 | M34: х | N34: - | O34: х | P34: х | Q34: х | R34: х | S34: х | T34: х | U34: х | V34: - | W34: х | X34: х | Y34: х | Z34: х | AA34: 901,285.00 | AB34: х | AC34: х | AD34: х | AE34: -
A35: 21 | B35: Газоснабжение | C35: П223003 | D35: - | E35: x | F35: - | G35: x | H35: - | I35: - | J35: х | K35: х | L35: - | M35: х | N35: - | O35: х | P35: х | Q35: х | R35: х | S35: х | T35: х | U35: х | V35: - | W35: х | X35: х | Y35: х | Z35: х | AA35: - | AB35: х | AC35: х | AD35: х | AE35: -
A36: 22 | B36: Водоснабжение | C36: П223004 | D36: 28,872.00 | E36: x | F36: - | G36: x | H36: 4,369.00 | I36: 4,369.00 | J36: х | K36: х | L36: 4,369.00 | M36: х | N36: - | O36: х | P36: х | Q36: х | R36: х | S36: х | T36: х | U36: х | V36: - | W36: х | X36: х | Y36: х | Z36: х | AA36: 4,369.00 | AB36: х | AC36: х | AD36: х | AE36: -
A37: 23 | B37: Прочие коммунальные услуги (ассигнования) | C37: П223099 | D37: - | E37: x | F37: - | G37: x | H37: - | I37: - | J37: х | K37: х | L37: - | M37: х | N37: - | O37: х | P37: х | Q37: х | R37: х | S37: х | T37: х | U37: х | V37: - | W37: х | X37: х | Y37: х | Z37: х | AA37: - | AB37: х | AC37: х | AD37: х | AE37: -
A38: 24 | B38: Прочие коммунальные услуги (лимиты) | C38: П223099 | D38: - | E38: - | F38: - | G38: - | H38: - | I38: - | J38: х | K38: х | L38: - | M38: х | N38: - | O38: х | P38: х | Q38: х | R38: х | S38: х | T38: х | U38: х | V38: - | W38: х | X38: х | Y38: х | Z38: х | AA38: - | AB38: х | AC38: х | AD38: х | AE38: -
A39: 25 | B39: Вывоз твердых коммунальных расходов | C39: П223017 | D39: - | E39: x | F39: - | G39: x | H39: - | I39: - | J39: х | K39: х | L39: - | M39: х | N39: - | O39: х | P39: х | Q39: х | R39: х | S39: х | T39: х | U39: х | V39: - | W39: х | X39: х | Y39: х | Z39: х | AA39: - | AB39: х | AC39: х | AD39: х | AE39: -
A40: 26 | B40: Подраздел 2.3 Питание | D40: - | E40: x | F40: - | G40: x | H40: - | I40: - | J40: х | K40: х | L40: - | M40: - | N40: - | O40: х | P40: х | Q40: х | R40: - | S40: х | T40: - | U40: - | V40: х | W40: х | X40: х | Y40: х | Z40: х | AA40: - | AB40: х | AC40: х | AD40: х | AE40: -
A41: 27 | B41: Организация питания | C41: П226003 | D41: - | E41: x | F41: - | G41: x | H41: - | I41: - | J41: х | K41: х | L41: - | M41: - | N41: - | O41: х | P41: х | Q41: х | R41: - | S41: х | T41: - | U41: - | V41: х | W41: х | X41: х | Y41: х | Z41: х | AA41: - | AB41: х | AC41: х | AD41: х | AE41: -
A42: 28 | B42: Подраздел 2.4 Налоги | D42: 281,687.63 | E42: x | F42: 281,263.00 | G42: x | H42: 281,650.00 | I42: 281,650.00 | J42: х | K42: х | L42: 281,650.00 | M42: - | N42: - | O42: х | P42: х | Q42: х | R42: - | S42: х | T42: х | U42: - | V42: - | W42: х | X42: х | Y42: х | Z42: х | AA42: 281,650.00 | AB42: х | AC42: х | AD42: х | AE42: -
A43: 29 | B43: 291 "Налоги,пошлины,сборы" | D43: 281,687.63 | E43: x | F43: 281,263.00 | G43: x | H43: 281,650.00 | I43: 281,650.00 | J43: х | K43: х | L43: 281,650.00 | M43: - | N43: - | O43: х | P43: х | Q43: х | R43: - | S43: х | T43: х | U43: - | V43: - | W43: х | X43: х | Y43: х | Z43: х | AA43: 281,650.00 | AB43: х | AC43: х | AD43: х | AE43: -
A44: 30 | B44: Земельный налог | C44: П291001 | D44: 246,370.00 | E44: x | F44: 246,367.00 | G44: x | H44: 246,370.00 | I44: 246,370.00 | J44: х | K44: х | L44: 246,370.00 | M44: х | N44: - | O44: х | P44: х | Q44: х | R44: х | S44: х | T44: х | U44: х | V44: - | W44: х | X44: х | Y44: х | Z44: х | AA44: 246,370.00 | AB44: х | AC44: х | AD44: х | AE44: -
A45: 31 | B45: Прочие налоги, в т.ч.госпошлины | C45: П291005 | D45: - | E45: x | F45: - | G45: x | H45: - | I45: - | J45: х | K45: х | L45: - | M45: х | N45: - | O45: х | P45: х | Q45: х | R45: х | S45: х | T45: х | U45: х | V45: - | W45: х | X45: х | Y45: х | Z45: х | AA45: - | AB45: х | AC45: х | AD45: х | AE45: -
A46: 32 | B46: Налог на имущество | C46: П291014 | D46: 35,317.63 | E46: x | F46: 34,896.00 | G46: x | H46: 35,280.00 | I46: 35,280.00 | J46: х | K46: х | L46: 35,280.00 | M46: х | N46: - | O46: х | P46: х | Q46: х | R46: х | S46: х | T46: х | U46: х | V46: - | W46: х | X46: х | Y46: х | Z46: х | AA46: 35,280.00 | AB46: х | AC46: х | AD46: х | AE46: -
A47: 33 | B47: Налог по упрощенной системе налогооблажения для АУ | C47: П291025 | D47: - | E47: x | F47: - | G47: x | H47: - | I47: - | J47: х | K47: х | L47: х | M47: - | N47: - | O47: х | P47: х | Q47: х | R47: - | S47: х | T47: х | U47: - | V47: х | W47: х | X47: х | Y47: х | Z47: х | AA47: х | AB47: х | AC47: х | AD47: х | AE47: -
A48: 34 | B48: Подраздел 2.5 Прочие расходы | D48: 199,384.74 | E48: x | F48: 223,812.51 | G48: x | H48: 100,312.98 | I48: 100,312.98 | J48: х | K48: - | L48: 100,312.98 | M48: - | N48: - | O48: х | P48: х | Q48: х | R48: - | S48: - | T48: - | U48: - | V48: - | W48: х | X48: х | Y48: х | Z48: х | AA48: 100,312.98 | AB48: - | AC48: - | AD48: - | AE48: -
A49: 35 | B49: 221 "Услуги связи" | D49: 11,993.22 | E49: x | F49: 11,993.22 | G49: x | H49: 11,993.22 | I49: 11,993.22 | J49: х | K49: х | L49: 11,993.22 | M49: х | N49: - | O49: х | P49: х | Q49: х | R49: х | S49: х | T49: х | U49: х | V49: - | W49: х | X49: х | Y49: х | Z49: х | AA49: 11,993.22 | AB49: х | AC49: х | AD49: х | AE49: -
A50: 36 | B50: Услуги телефонной связи (абонентская и повременная плата (ежемесячный платеж) за местные, междугородные, международные переговоры) | C50: П221001 | D50: 11,993.22 | E50: x | F50: 11,993.22 | G50: - | H50: 11,993.22 | I50: 11,993.22 | J50: х | K50: х | L50: 11,993.22 | M50: х | N50: - | O50: х | P50: х | Q50: х | R50: х | S50: х | T50: х | U50: х | V50: - | W50: х | X50: х | Y50: х | Z50: х | AA50: 11,993.22 | AB50: х | AC50: х | AD50: х | AE50: -
A51: 37 | B51: Плата за предоставление доступа (разовый платеж) к телефонной линии связи и Интернет | C51: П221002 | D51: - | E51: x | F51: - | G51: x | H51: - | I51: - | J51: х | K51: х | L51: - | M51: х | N51: - | O51: х | P51: х | Q51: х | R51: х | S51: х | T51: х | U51: х | V51: - | W51: х | X51: х | Y51: х | Z51: х | AA51: - | AB51: х | AC51: х | AD51: х | AE51: -
A52: 38 | B52: Услуги сотовой связи | C52: П221010 | D52: - | E52: x | F52: - | G52: x | H52: - | I52: - | J52: х | K52: х | L52: - | M52: х | N52: - | O52: х | P52: х | Q52: х | R52: х | S52: х | T52: х | U52: х | V52: - | W52: х | X52: х | Y52: х | Z52: х | AA52: - | AB52: х | AC52: х | AD52: х | AE52: -
A53: 39 | B53: Плата за услуги сети Интернет | C53: П221012 | D53: - | E53: x | F53: - | G53: x | H53: - | I53: - | J53: х | K53: х | L53: - | M53: х | N53: - | O53: х | P53: х | Q53: х | R53: х | S53: х | T53: х | U53: х | V53: - | W53: х | X53: х | Y53: х | Z53: х | AA53: - | AB53: х | AC53: х | AD53: х | AE53: -
A54: 40 | B54: Прочие услуги связи | C54: П221099 | D54: - | E54: x | F54: - | G54: x | H54: - | I54: - | J54: х | K54: х | L54: - | M54: х | N54: - | O54: х | P54: х | Q54: х | R54: х | S54: х | T54: х | U54: х | V54: - | W54: х | X54: х | Y54: х | Z54: х | AA54: - | AB54: х | AC54: х | AD54: х | AE54: -
A55: 41 | B55: 224 "Арендная плата за пользоание имуществом" | C55: П224002 | D55: - | E55: x | F55: - | G55: x | H55: - | I55: - | J55: х | K55: х | L55: - | M55: х | N55: - | O55: х | P55: х | Q55: х | R55: х | S55: х | T55: х | U55: х | V55: - | W55: х | X55: х | Y55: х | Z55: х | AA55: - | AB55: х | AC55: х | AD55: х | AE55: -
A56: 42 | B56: 225 "Работы, услуги по содержанию имущества" | D56: 165,887.52 | E56: x | F56: 122,303.52 | G56: x | H56: 82,943.76 | I56: 82,943.76 | J56: х | K56: х | L56: 82,943.76 | M56: - | N56: - | O56: х | P56: х | Q56: х | R56: - | S56: х | T56: - | U56: - | V56: - | W56: х | X56: х | Y56: х | Z56: х | AA56: 82,943.76 | AB56: х | AC56: х | AD56: х | AE56: -
A57: 43 | B57: Содержание в чистоте помещений, зданий, дворов, иного недвижимого имущества ( в том числе озеленение (кроме посадкидеревьев,кустарников)) | C57: П225002 | D57: - | E57: x | F57: - | G57: x | H57: - | I57: - | J57: х | K57: х | L57: - | M57: х | N57: - | O57: х | P57: х | Q57: х | R57: х | S57: х | T57: х | U57: х | V57: - | W57: х | X57: х | Y57: х | Z57: х | AA57: - | AB57: х | AC57: х | AD57: х | AE57: -
A58: 44 | B58: Проведение работ по ремонту и восстановлению эффективности функционирования коммунальных инженерных систем и коммуникаций,…… | C58: П225003 | D58: - | E58: x | F58: - | G58: x | H58: - | I58: - | J58: х | K58: х | L58: - | M58: х | N58: - | O58: х | P58: х | Q58: х | R58: х | S58: х | T58: х | U58: х | V58: - | W58: х | X58: х | Y58: х | Z58: х | AA58: - | AB58: х | AC58: х | AD58: х | AE58: -
A59: 45 | B59: Обеспечение функционирования и поддержка (восстановление) работоспособности объектов нефинансовых активов | C59: П225004 | D59: - | E59: x | F59: - | G59: x | H59: - | I59: - | J59: х | K59: х | L59: - | M59: х | N59: - | O59: х | P59: х | Q59: х | R59: х | S59: х | T59: х | U59: х | V59: - | W59: х | X59: х | Y59: х | Z59: х | AA59: - | AB59: х | AC59: х | AD59: х | AE59: -
A60: 46 | B60: Зарплата внештатных сотрудников | C60: П225005 | D60: - | E60: x | F60: - | G60: x | H60: - | I60: - | J60: х | K60: х | L60: - | M60: х | N60: - | O60: х | P60: х | Q60: х | R60: х | S60: х | T60: х | U60: х | V60: - | W60: х | X60: х | Y60: х | Z60: х | AA60: - | AB60: х | AC60: х | AD60: х | AE60: -
A61: 47 | B61: Текущий ремонт зданий, сооружений, коммунальных инженерных систем и коммуникаций | C61: Н225007 | D61: - | E61: x | F61: - | G61: x | H61: - | I61: - | J61: х | K61: х | L61: - | M61: х | N61: - | O61: х | P61: х | Q61: х | R61: х | S61: х | T61: х | U61: х | V61: - | W61: х | X61: х | Y61: х | Z61: х | AA61: - | AB61: х | AC61: х | AD61: х | AE61: -
A62: 48 | B62: Техническое обслуживание и ремонт аппаратного обеспечения (оргтехника, медицинское оборудование, компьютерная техника и.т.д.), включающее контроль технического состояния | C62: П225010 | D62: - | E62: x | F62: - | G62: x | H62: - | I62: - | J62: х | K62: х | L62: - | M62: х | N62: - | O62: х | P62: х | Q62: х | R62: х | S62: х | T62: х | U62: х | V62: - | W62: х | X62: х | Y62: х | Z62: х | AA62: - | AB62: х | AC62: х | AD62: х | AE62: -
A63: 49 | B63: Расходы на техническое обслуживание и ремонт оборудования (торговое, кухонное, офисное, лифты и т.п.), мебели,ытовой техники, инвентаря (торгового, кухонного, офисного и т.п.) | C63: П225015 | D63: 134,339.04 | E63: x | F63: 90,755.04 | G63: x | H63: 67,169.52 | I63: 67,169.52 | J63: х | K63: х | L63: 67,169.52 | M63: х | N63: - | O63: х | P63: х | Q63: х | R63: х | S63: х | T63: х | U63: х | V63: - | W63: х | X63: х | Y63: х | Z63: х | AA63: 67,169.52 | AB63: х | AC63: х | AD63: х | AE63: -
A64: 50 | B64: Содержание в чистоте имущества, кроме недвижимого | C64: П225016 | D64: - | E64: x | F64: - | G64: x | H64: - | I64: - | J64: х | K64: х | L64: - | M64: - | N64: - | O64: х | P64: х | Q64: х | R64: - | S64: х | T64: - | U64: - | V64: - | W64: х | X64: х | Y64: х | Z64: х | AA64: - | AB64: х | AC64: х | AD64: х | AE64: -
A65: 51 | B65: Техническое обслуживание приборов учета | C65: П225035 | D65: 31,548.48 | E65: x | F65: 31,548.48 | G65: x | H65: 15,774.24 | I65: 15,774.24 | J65: х | K65: х | L65: 15,774.24 | M65: х | N65: - | O65: х | P65: х | Q65: х | R65: х | S65: х | T65: х | U65: х | V65: - | W65: х | X65: х | Y65: х | Z65: х | AA65: 15,774.24 | AB65: х | AC65: х | AD65: х | AE65: -
A66: 52 | B66: Противопожарные мероприятия (огнезащитная обработка чердачных покрытий, замеры сопротивления изоляции, зарядка огнетушителей, опрессовка проводов) | C66: П225036 | D66: - | E66: x | F66: - | G66: x | H66: - | I66: - | J66: х | K66: х | L66: - | M66: х | N66: - | O66: х | P66: х | Q66: х | R66: х | S66: х | T66: х | U66: х | V66: - | W66: х | X66: х | Y66: х | Z66: х | AA66: - | AB66: х | AC66: х | AD66: х | AE66: -
A67: 53 | B67: Расходы по валке и обрезке зеленых насаждений | C67: П225040 | D67: - | E67: x | F67: - | G67: x | H67: - | I67: - | J67: х | K67: х | L67: - | M67: х | N67: - | O67: х | P67: х | Q67: х | R67: х | S67: х | T67: х | U67: х | V67: - | W67: х | X67: х | Y67: х | Z67: х | AA67: - | AB67: х | AC67: х | AD67: х | AE67: -
A68: 54 | B68: Вывоз мусора (ТБО) для учреждений СКС | C68: П225050 | D68: - | E68: x | F68: - | G68: x | H68: - | I68: - | J68: х | K68: х | L68: - | M68: х | N68: - | O68: х | P68: х | Q68: х | R68: х | S68: х | T68: х | U68: х | V68: - | W68: х | X68: х | Y68: х | Z68: х | AA68: - | AB68: х | AC68: х | AD68: х | AE68: -
A69: 55 | B69: Прочие первоочередные расходы по работам, услугам по содержанию имущества | C69: П225098 | D69: - | E69: x | F69: - | G69: x | H69: - | I69: - | J69: х | K69: х | L69: - | M69: х | N69: - | O69: х | P69: х | Q69: х | R69: х | S69: х | T69: х | U69: х | V69: - | W69: х | X69: х | Y69: х | Z69: х | AA69: - | AB69: х | AC69: х | AD69: х | AE69: -
A70: 56 | B70: Прочие расходы по коммунальным услугам, не включенные в вышеуказанные дополнительные коды экономической классификации | C70: Н225099 | D70: - | E70: x | F70: - | G70: x | H70: - | I70: - | J70: х | K70: х | L70: - | M70: х | N70: - | O70: х | P70: х | Q70: х | R70: х | S70: х | T70: х | U70: х | V70: - | W70: х | X70: х | Y70: х | Z70: х | AA70: - | AB70: х | AC70: х | AD70: х | AE70: -
A71: 57 | B71: 226 "Прочие работы, услуги" | D71: 21,504.00 | E71: x | F71: 64,515.77 | G71: x | H71: 5,376.00 | I71: 5,376.00 | J71: х | K71: - | L71: 5,376.00 | M71: х | N71: - | O71: х | P71: х | Q71: х | R71: х | S71: х | T71: х | U71: х | V71: - | W71: х | X71: х | Y71: х | Z71: х | AA71: 5,376.00 | AB71: - | AC71: - | AD71: - | AE71: -
A72: 58 | B72: Подписка | C72: П226001 | D72: - | E72: x | F72: - | G72: x | H72: - | I72: - | J72: х | K72: х | L72: - | M72: х | N72: - | O72: х | P72: х | Q72: х | R72: х | S72: х | T72: х | U72: х | V72: - | W72: х | X72: х | Y72: х | Z72: х | AA72: - | AB72: х | AC72: х | AD72: х | AE72: -
A73: 59 | B73: Заработная плата внештатных сотрудников | C73: П226002 | D73: - | E73: x | F73: - | G73: x | H73: - | I73: - | J73: х | K73: х | L73: - | M73: х | N73: - | O73: х | P73: х | Q73: х | R73: х | S73: х | T73: х | U73: х | V73: - | W73: х | X73: х | Y73: х | Z73: х | AA73: - | AB73: х | AC73: х | AD73: х | AE73: -
A74: 60 | B74: Услуги вневедомственной (в том числе пожарной) охраны | C74: П226004 | D74: - | E74: - | F74: - | G74: - | H74: х | I74: х | J74: х | K74: х | L74: х | M74: х | N74: х | O74: х | P74: х | Q74: х | R74: х | S74: х | T74: х | U74: х | V74: х | W74: х | X74: х | Y74: х | Z74: х | AA74: х | AB74: х | AC74: х | AD74: х | AE74: х
A75: 61 | B75: За участие в семинарах, совещаниях, конференциях, курсах повышения квалификации, проф. обучение, за образовательные услуги, … | C75: П226052 | D75: - | E75: x | F75: - | G75: x | H75: - | I75: - | J75: х | K75: х | L75: - | M75: х | N75: - | O75: х | P75: х | Q75: х | R75: х | S75: х | T75: х | U75: х | V75: - | W75: х | X75: х | Y75: х | Z75: х | AA75: - | AB75: х | AC75: х | AD75: х | AE75: -
A76: 62 | B76: Приобретение неисключительных (пользовательских) прав на программное обеспечение | C76: П226010 | D76: - | E76: x | F76: - | G76: x | H76: - | I76: - | J76: х | K76: х | L76: - | M76: х | N76: - | O76: х | P76: х | Q76: х | R76: х | S76: х | T76: х | U76: х | V76: - | W76: х | X76: х | Y76: х | Z76: х | AA76: - | AB76: х | AC76: х | AD76: х | AE76: -
A77: 63 | B77: Приобретение и обновление справочно-информационных баз данных | C77: П226013 | D77: - | E77: x | F77: - | G77: x | H77: - | I77: - | J77: х | K77: х | L77: - | M77: х | N77: - | O77: х | P77: х | Q77: х | R77: х | S77: х | T77: х | U77: х | V77: - | W77: х | X77: х | Y77: х | Z77: х | AA77: - | AB77: х | AC77: х | AD77: х | AE77: -
A78: 64 | B78: Типографские работы,услуги | C78: П226022 | D78: - | E78: x | F78: - | G78: x | H78: - | I78: - | J78: х | K78: х | L78: - | M78: х | N78: - | O78: х | P78: х | Q78: х | R78: х | S78: х | T78: х | U78: х | V78: - | W78: х | X78: х | Y78: х | Z78: х | AA78: - | AB78: х | AC78: х | AD78: х | AE78: -
A79: 65 | B79: Возмещение расходов и оплата по договорам гражданско-правового характера услуг по проживанию в жилых помещениях (найм жилого помещения) при служебных командировках | C79: П226024 | D79: - | E79: x | F79: - | G79: x | H79: - | I79: - | J79: х | K79: х | L79: - | M79: х | N79: - | O79: х | P79: х | Q79: х | R79: х | S79: х | T79: х | U79: х | V79: - | W79: х | X79: х | Y79: х | Z79: х | AA79: - | AB79: х | AC79: х | AD79: х | AE79: -
A80: 66 | B80: Услуги адвокатов, нотариусов, переводчиков, экспертов, инкассаторов | C80: П226025 | D80: - | E80: x | F80: 43,584.00 | G80: x | H80: - | I80: - | J80: х | K80: х | L80: - | M80: х | N80: - | O80: х | P80: х | Q80: х | R80: х | S80: х | T80: х | U80: х | V80: - | W80: х | X80: х | Y80: х | Z80: х | AA80: - | AB80: х | AC80: х | AD80: х | AE80: -
A81: 67 | B81: Проведение инвентаризации, паспортизации основных средств | C81: П226027 | D81: - | E81: x | F81: - | G81: x | H81: - | I81: - | J81: х | K81: х | L81: - | M81: х | N81: - | O81: х | P81: х | Q81: х | R81: х | S81: х | T81: х | U81: х | V81: - | W81: х | X81: х | Y81: х | Z81: х | AA81: - | AB81: х | AC81: х | AD81: х | AE81: -
A82: 68 | B82: Услуги по предоставлению во временное пользование мягкого инвентаря и специальной одежды | C82: П226037 | D82: - | E82: x | F82: - | G82: x | H82: - | I82: - | J82: х | K82: х | L82: - | M82: х | N82: - | O82: х | P82: х | Q82: х | R82: х | S82: х | T82: х | U82: х | V82: - | W82: х | X82: х | Y82: х | Z82: х | AA82: - | AB82: х | AC82: х | AD82: х | AE82: -
A83: 69 | B83: Возмещение работникам (сотрудникам) расходов по проезду при служебных командировках | C83: П226042 | D83: - | E83: x | F83: - | G83: x | H83: - | I83: - | J83: х | K83: х | L83: - | M83: х | N83: - | O83: х | P83: х | Q83: х | R83: х | S83: х | T83: х | U83: х | V83: - | W83: х | X83: х | Y83: х | Z83: х | AA83: - | AB83: х | AC83: х | AD83: х | AE83: -
A84: 70 | B84: Услуги охраны образовательных организаций частными охранными предприятиями | C84: П226050 | D84: х | E84: x | F84: х | G84: x | H84: - | I84: - | J84: х | K84: - | L84: - | M84: х | N84: - | O84: х | P84: х | Q84: х | R84: х | S84: х | T84: х | U84: х | V84: - | W84: х | X84: х | Y84: х | Z84: х | AA84: - | AB84: - | AC84: - | AD84: - | AE84: -
A85: 71 | B85: Прочие первоочередные расходы по прочим работам, услугам | C85: П226098 | D85: 21,504.00 | E85: x | F85: 20,931.77 | G85: x | H85: 5,376.00 | I85: 5,376.00 | J85: х | K85: х | L85: 5,376.00 | M85: х | N85: - | O85: х | P85: х | Q85: х | R85: х | S85: х | T85: х | U85: х | V85: - | W85: х | X85: х | Y85: х | Z85: х | AA85: 5,376.00 | AB85: х | AC85: х | AD85: х | AE85: -
A86: 72 | B86: Прочие расходы по прочим работам, услугам, не включенные в вышеуказанные дополнительные коды экономической классификации | C86: Н226099 | D86: - | E86: x | F86: - | G86: x | H86: - | I86: - | J86: х | K86: х | L86: - | M86: х | N86: - | O86: х | P86: х | Q86: х | R86: х | S86: х | T86: х | U86: х | V86: - | W86: х | X86: х | Y86: х | Z86: х | AA86: - | AB86: х | AC86: х | AD86: х | AE86: -
A87: 73 | B87: 227 "Страхование" | C87: П227001 | D87: - | E87: x | F87: - | G87: x | H87: - | I87: - | J87: х | K87: х | L87: - | M87: х | N87: - | O87: х | P87: х | Q87: х | R87: х | S87: х | T87: х | U87: х | V87: - | W87: х | X87: х | Y87: х | Z87: х | AA87: - | AB87: х | AC87: х | AD87: х | AE87: -
A88: 74 | B88: 266 "Социальные пособия и компенсации персоналу в денежной форме" | D88: - | E88: x | F88: 25,000.00 | G88: x | H88: - | I88: - | J88: х | K88: - | L88: - | M88: - | N88: - | O88: х | P88: х | Q88: х | R88: - | S88: - | T88: - | U88: - | V88: х | W88: х | X88: х | Y88: х | Z88: х | AA88: - | AB88: х | AC88: х | AD88: х | AE88: -
A89: 75 | B89: Расходы по социальным пособиям и компенсациям персоналу в денежной форм | C89: П266099 | D89: - | E89: x | F89: 25,000.00 | G89: x | H89: - | I89: - | J89: х | K89: - | L89: - | M89: - | N89: - | O89: х | P89: х | Q89: х | R89: - | S89: - | T89: - | U89: - | V89: х | W89: х | X89: х | Y89: х | Z89: х | AA89: - | AB89: х | AC89: х | AD89: х | AE89: -
A90: 76 | B90: 310 "Увеличение стоимости основных средств" | D90: - | E90: x | F90: - | G90: x | H90: - | I90: - | J90: х | K90: х | L90: - | M90: - | N90: - | O90: х | P90: х | Q90: х | R90: - | S90: х | T90: - | U90: - | V90: - | W90: х | X90: х | Y90: х | Z90: х | AA90: - | AB90: х | AC90: х | AD90: х | AE90: -
A91: 77 | B91: Приобретение огнетушителей | C91: П310001 | D91: - | E91: x | F91: - | G91: x | H91: - | I91: - | J91: х | K91: х | L91: - | M91: х | N91: - | O91: х | P91: х | Q91: х | R91: х | S91: х | T91: х | U91: х | V91: - | W91: х | X91: х | Y91: х | Z91: х | AA91: - | AB91: х | AC91: х | AD91: х | AE91: -
A92: 78 | B92: Приобретение автоматизированных рабочих мест, транспортно-коммуникационного оборудования, серверного, периферийного и т.п. оборудования | C92: Н310004 | D92: - | E92: x | F92: - | G92: x | H92: - | I92: - | J92: х | K92: х | L92: - | M92: х | N92: - | O92: х | P92: х | Q92: х | R92: х | S92: х | T92: х | U92: х | V92: - | W92: х | X92: х | Y92: х | Z92: х | AA92: - | AB92: х | AC92: х | AD92: х | AE92: -
A93: 79 | B93: Прочие первоочередные расходы по увеличению стоимости основных средств | C93: П310098 | D93: - | E93: x | F93: - | G93: x | H93: - | I93: - | J93: х | K93: х | L93: - | M93: - | N93: - | O93: х | P93: х | Q93: х | R93: - | S93: х | T93: - | U93: - | V93: - | W93: х | X93: х | Y93: х | Z93: х | AA93: - | AB93: х | AC93: х | AD93: х | AE93: -
A94: 80 | B94: Прочие расходы по увеличению стоимости основных средств, не включенные в вышеуказанные дополнительные коды экономической классификации | C94: Н310099 | D94: - | E94: x | F94: - | G94: x | H94: - | I94: - | J94: х | K94: х | L94: - | M94: - | N94: - | O94: х | P94: х | Q94: х | R94: - | S94: х | T94: - | U94: - | V94: - | W94: х | X94: х | Y94: х | Z94: х | AA94: - | AB94: х | AC94: х | AD94: х | AE94: -
A95: 81 | B95: 341 "Увеличение стоимости лекарственных препаратов, применяемых в мед.целях" | D95: - | E95: x | F95: - | G95: x | H95: - | I95: - | J95: х | K95: х | L95: - | M95: - | N95: - | O95: х | P95: х | Q95: х | R95: - | S95: х | T95: - | U95: - | V95: х | W95: х | X95: х | Y95: х | Z95: х | AA95: - | AB95: х | AC95: х | AD95: х | AE95: -
A96: 82 | B96: Закупка медикаментов, перевязочных средств (расходных материалов) | C96: П341006 | D96: - | E96: x | F96: - | G96: x | H96: - | I96: - | J96: х | K96: х | L96: - | M96: - | N96: - | O96: х | P96: х | Q96: х | R96: - | S96: х | T96: - | U96: - | V96: х | W96: х | X96: х | Y96: х | Z96: х | AA96: - | AB96: х | AC96: х | AD96: х | AE96: -
A97: 83 | B97: 344 "Увеличение стоимости строительных атериалов" | D97: - | E97: x | F97: - | G97: x | H97: - | I97: - | J97: х | K97: х | L97: - | M97: х | N97: - | O97: х | P97: х | Q97: х | R97: - | S97: х | T97: - | U97: х | V97: - | W97: х | X97: х | Y97: х | Z97: х | AA97: - | AB97: х | AC97: х | AD97: х | AE97: -
A98: 84 | B98: Первоочередные расходы по увеличению стоимости строительных материалов | C98: П344098 | D98: - | E98: x | F98: - | G98: x | H98: - | I98: - | J98: х | K98: х | L98: - | M98: х | N98: - | O98: х | P98: х | Q98: х | R98: - | S98: х | T98: - | U98: х | V98: - | W98: х | X98: х | Y98: х | Z98: х | AA98: - | AB98: х | AC98: х | AD98: х | AE98: -
A99: 85 | B99: Прочие расходы по увеличению стоимости строительных материалов | C99: Н344099 | D99: - | E99: x | F99: - | G99: x | H99: - | I99: - | J99: х | K99: х | L99: - | M99: х | N99: - | O99: х | P99: х | Q99: х | R99: - | S99: х | T99: - | U99: х | V99: - | W99: х | X99: х | Y99: х | Z99: х | AA99: - | AB99: х | AC99: х | AD99: х | AE99: -
A100: 86 | B100: 345 "Увеличение стоимости мякого инвентаря" | D100: - | E100: x | F100: - | G100: x | H100: - | I100: - | J100: х | K100: х | L100: - | M100: - | N100: - | O100: х | P100: х | Q100: х | R100: - | S100: х | T100: - | U100: - | V100: - | W100: х | X100: х | Y100: х | Z100: х | AA100: - | AB100: х | AC100: х | AD100: х | AE100: -
A101: 87 | B101: Закупка мягкого инвентаря, одежды, обмундирования | C101: П345002 | D101: - | E101: x | F101: - | G101: x | H101: - | I101: - | J101: х | K101: х | L101: - | M101: - | N101: - | O101: х | P101: х | Q101: х | R101: - | S101: х | T101: - | U101: - | V101: - | W101: х | X101: х | Y101: х | Z101: х | AA101: - | AB101: х | AC101: х | AD101: х | AE101: -
A102: 88 | B102: 346 "Увеличение стоимости прочих материальных запасов однократного применения | D102: - | E102: x | F102: - | G102: x | H102: - | I102: - | J102: х | K102: х | L102: - | M102: - | N102: - | O102: х | P102: х | Q102: х | R102: - | S102: х | T102: - | U102: - | V102: - | W102: х | X102: х | Y102: х | Z102: х | AA102: - | AB102: х | AC102: х | AD102: х | AE102: -
A103: 89 | B103: Закупка запчастей к оборудованию | C103: П346003 | D103: - | E103: x | F103: - | G103: x | H103: - | I103: - | J103: х | K103: х | L103: - | M103: х | N103: - | O103: х | P103: х | Q103: х | R103: х | S103: х | T103: х | U103: х | V103: - | W103: х | X103: х | Y103: х | Z103: х | AA103: - | AB103: х | AC103: х | AD103: х | AE103: -
A104: 90 | B104: Приобретение канцелярских, хозяйственных товаров,расходных материалов | C104: П346017 | D104: - | E104: x | F104: - | G104: x | H104: - | I104: - | J104: х | K104: х | L104: - | M104: - | N104: - | O104: х | P104: х | Q104: х | R104: - | S104: х | T104: - | U104: - | V104: - | W104: х | X104: х | Y104: х | Z104: х | AA104: - | AB104: х | AC104: х | AD104: х | AE104: -
A105: 91 | B105: Прочие первоочередные расходы по увеличению стоимости прочих материальных запасов | C105: П346098 | D105: - | E105: x | F105: - | G105: x | H105: - | I105: - | J105: х | K105: х | L105: - | M105: - | N105: - | O105: х | P105: х | Q105: х | R105: - | S105: х | T105: - | U105: - | V105: - | W105: х | X105: х | Y105: х | Z105: х | AA105: - | AB105: х | AC105: х | AD105: х | AE105: -
A106: 92 | B106: Прочие расходы по увеличению ст-ти материальных запасов (Ассигнования) | C106: Н346099 | D106: - | E106: x | F106: - | G106: x | H106: - | I106: - | J106: х | K106: х | L106: - | M106: - | N106: - | O106: х | P106: х | Q106: х | R106: - | S106: х | T106: - | U106: - | V106: - | W106: х | X106: х | Y106: х | Z106: х | AA106: - | AB106: х | AC106: х | AD106: х | AE106: -
A107: 93 | B107: Прочие расходы по увеличению ст-ти материальных запасов (Лимиты) | C107: Н346099 | D107: - | E107: - | F107: - | G107: - | H107: - | I107: - | J107: х | K107: х | L107: - | M107: - | N107: - | O107: х | P107: х | Q107: х | R107: - | S107: х | T107: - | U107: - | V107: - | W107: х | X107: х | Y107: х | Z107: х | AA107: - | AB107: х | AC107: х | AD107: х | AE107: -
A108: 94 | B108: Итого учтено ассигнований | D108: 4,241,853.11 | E108: x | F108: 4,398,357.13 | G108: x | H108: 3,162,989.62 | I108: 3,162,989.62 | J108: - | K108: - | L108: 3,162,989.62 | M108: - | N108: - | O108: - | P108: - | Q108: - | R108: - | S108: - | T108: - | U108: - | V108: - | W108: 1,753,132.64 | X108: - | Y108: 1,753,132.64 | Z108: - | AA108: 1,409,856.98 | AB108: - | AC108: - | AD108: - | AE108: -
A109: 95 | B109: Итого учтено лимитов | D109: 4,241,853.11 | E109: x | F109: 4,398,357.13 | G109: x | H109: 3,162,989.62 | I109: 3,162,989.62 | J109: - | K109: - | L109: 3,162,989.62 | M109: - | N109: - | O109: - | P109: - | Q109: - | R109: - | S109: - | T109: - | U109: - | V109: - | W109: 1,753,132.64 | X109: - | Y109: 1,753,132.64 | Z109: - | AA109: 1,409,856.98 | AB109: - | AC109: - | AD109: - | AE109: -
A110: 96 | B110: Объем недоведенных лимитов | D110: - | E110: x | F110: - | G110: x | H110: - | I110: - | J110: - | K110: - | L110: - | M110: - | N110: - | O110: - | P110: - | Q110: - | R110: - | S110: - | T110: - | U110: - | V110: - | W110: - | X110: - | Y110: - | Z110: - | AA110: - | AB110: - | AC110: - | AD110: - | AE110: -

Sheet Расшифровка бюджета
A1: Бюджет на 2023 год по МАДОУ "Детский сад №37" Вахитовского района г.Казани
A3: Наименование показателя | B3: КОСГУ | C3: Доп Эк | D3: д.с 37
A5: РАСХОДЫ
A6: Начисления на выплаты по оплате труда, всего: | B6: 210 | D6: =D7+D13 -> 1,753,132.64
A7: Заработная плата, всего: | B7: 211 | D7: =SUM(D8:D12) -> 1,346,492.04
A8: зарплата пед.персонала (НФЗ субвенция) | B8: 302 | C8: П211004
A9: премия пед.работникам (ДопФк 13594) (субвенция) | B9: 302 | C9: П211004
A10: зарплата пед.персонала (мун.бюджет) | B10: 302 | C10: П211004
A11: заработная плата АУП, УВП и обслужив.персонала (НСВ)(мун.бюджет) | B11: 303 | C11: П211005 | D11: 1,346,492.04
A12: заработная плата АУП, УВП и обслужив.персонала(родплата) (НСВ) | B12: 303 | C12: П211005
A13: Начисления на выплаты по оплате труда, всего: | B13: 213 | D13: =SUM(D14:D18) -> 406,640.60
A14: начисление на зар.пл. пед.перс. (НФЗ субвенция) | B14: 302 | C14: П213004
A15: премия пед.работникам (ДопФк 13594) (субвенция) | B15: 302 | C15: П213004
A16: начисление на зар.пл. пед.перс. (мун.бюджет) | B16: 302 | C16: П213004
A17: начисление на зар.пл.АУП, УВП и обслужив.персонала (НСВ)(мун.бюджет) | B17: 303 | C17: П213005 | D17: 406,640.60
A18: начисление на зар.пл.АУП, УВП и обслужив.персонала (НСВ) (родплата) | B18: 303 | C18: П213005
A19: Оплата работ, услуг: | B19: 220 | D19: =D20+D25+D29+D36+D40+D61 -> 1,128,206.98
A20: Услуги связи, всего: | B20: 221 | D20: =SUM(D21:D24) -> 11,993.22
A21: Услуги городской телефонной связи (местные соединения) | B21: 304 | C21: П221001 | D21: 11,993.22
A22: Услуги сотовой связи | C22: П221002
A23: Услуги сети "Интернет" | C23: П221012
A24: Прочие | C24: П221099
A25: Транспортные услуги, всего: | B25: 222 | D25: =SUM(D26:D28) -> 0.00
A26: Все виды расходов по транспортному обслуживанию (найм)
A27: Командировочные расходы (проезд) | C27: 222,010
A28: Прочие
A29: Коммунальные услуги, всего: | B29: 223 | D29: =SUM(D30:D35) -> 1,027,894.00
A30: Оплата потребления электрической энергии | B30: 304 | C30: П223001 | D30: 122,240.00
A31: Оплата потребления электрической энергии (разница +ассигнования) | B31: 304 | C31: П223001
A32: Оплата отопления и технологических нужд | B32: 304 | C32: П223002 | D32: 901,285.00
A33: Оплата потребления газа | B33: 304 | C33: П223003 | D33: 0.00
A34: Оплата водоснабжения помещений | B34: 304 | C34: П223004 | D34: 4,369.00
A35: Оплата договоров на вывоз твердых коммунальных отходов с региональным оператором | B35: 304 | C35: П223017
A36: Арендная плата за пользование имуществом, всего: | B36: 224 | D36: =SUM(D37:D39) -> 0.00
A37: Аренда помещения
A38: Аренда транспорта
A39: Прочие
A40: Работы, услуги по содержанию имущества, всего: | B40: 225 | D40: =SUM(D41:D60) -> 82,943.76
A41: Сброс снега с крыши | B41: 304 | C41: П225002
A42: Дезинфекция, дезинсекция и дератизация | B42: 304 | C42: П225002
A43: Обработка участков от комаров и клещей (аккарицидная обработка) | B43: 304 | C43: П225002
A44: Проведение работ по ремонту и восстановлению эффективности функционирования коммунальных инженерных систем и коммуникаций, (опрессовка системы отопления) | B44: 304 | C44: П225003 | D44: 0.00
A45: З/пл внешт.сотр.(сброс снега с крыши) | B45: 304 | C45: П225005
A46: Текущий ремонт зданий (плановые кровельные и общестроительные работы, плановый ремонт коммунальных инженерных систем и коммуникаций, в том числе газового и теплового хозяйства, сетей водоснабжения, водоотведения и электроснабжения) | B46: 304 | C46: Н225007
A47: Противопожарные мероприятия (замеры сопротивления изоляции) | B47: 304 | C47: П225036
A48: Противопожарные мероприятия (огнезащитная обработка чердачных перекрытий) | B48: 304 | C48: П225036
A49: Техническое обслуживание и ремонт аппаратного обеспечения (оргтехника, медицинское оборудование, компьют.техника и т.д.), включающее контроль тех.состояния | C49: П225010
A50: Расходы на техническое обслуживание и ремонт оборудования (торговое, кухонное, офисное, лифты и т.п.), мебели, бытовой техники, инвентаря (торгового, кухонного, офисного и т.п.) | B50: 304 | C50: П225015
A51: Расходы на техническое обслуживание и ремонт малых грузовых лифтов | B51: 304 | C51: П225015
A52: Расходы на техническое обслуживание вентиляционной системы | B52: 304 | C52: П225015
A53: Расходы на техническое обслуживание узлов пог.регулир.и теплообменников | B53: 304 | C53: П225015 | D53: 67,169.52
A54: Прачечные услуги | B54: 304 | C54: П225016
A55: Экспертиза огнезащитной обработки | C55: П225098
A56: Техническое обслуживание приборов учета | B56: 304 | C56: П225035 | D56: 15,774.24
A57: Благоустройство территории (общестроительные работы вне здания, обрезка деревьев) | B57: 304 | C57: П225040
A58: Потребность на замену счётчиков и трансформаторов | C58: П225098
A59: Техническое освидетельствование лифтов | C59: П225098
A60: Эксплуатационные расходы | C60: П225098
A61: Прочие работы, услуги, всего: | B61: 226 | D61: =SUM(D62:D75) -> 5,376.00
A62: Подписка | B62: 302 | C62: П226001
A63: Питание бюджет | B63: 303 | C63: П226003
A64: Питание родплата | B64: 303 | C64: П226003
A65: Обучение санит.гигиен.обуч.руковод. | B65: 304 | C65: П226052
A66: Прочие обучения (охрана труда -1500руб.-1чел.) | B66: 304 | C66: П226052
A67: Обучение контрактным управляющим (5500-1чел) | C67: П226052
A68: Прочие обучения (программа электроустановок -4000,00) | B68: 304 | C68: П226052
A69: Прочие обучения (ГО и ЧС 3000руб.-1чел.) | B69: 304 | C69: П226052
A70: Проведение инвентаризации, паспортизации основных средств | B70: 304 | C70: П226027
A71: Услуги по предоставлению во временное пользование мягкого инвентаря и спец.одежды | B71: 304 | C71: П226037
A72: Прочие услуги (оценка профрисков) | B72: 304 | C72: П226098
A73: Прочие услуги (аттестация рабочих мест СОУТ) | B73: 304 | C73: П226098
A74: Прочие услуги (потребность на обслуживание автоматизированного учёта электроэнергии) | B74: 304 | C74: П226098 | D74: 5,376.00
A75: Услуги по страхованию (за исключением ОСАГО, КАСКО) | C75: П227001
A76: Прочие расходы, всего: | B76: 290 | D76: =SUM(D77:D81) -> 281,650.00
A77: Земельный налог | B77: 304 | C77: П291001 | D77: 246,370.00
A78: Налог на имущество | B78: 304 | C78: П291014 | D78: 35,280.00
A79: Госпошлина на переоформеление лицензии (мед.деятельность) | C79: П291005
A80: Госпошлина на оформеление аккредитации | C80: П290005
A81: Налог по упрощенной системе налогообложения для автономных учреждений (родплата) | C81: П291025
A82: Поступление нефинансовых активов, всего: | B82: 300 | D82: =D83+D87 -> 0.00
A83: Увеличение стоимости основных средств, всего: | B83: 310 | D83: =SUM(D84:D86) -> 0.00
A84: Приобретение автоматизированных рабочих мест, транспортно-коммуникационного оборудования, серверного, периферийного и т.п.оборудования | C84: Н310004
A85: Прочие расходы по увеличению стоимости основных средств (субвенция) | C85: Н310099
A86: Прочие расходы по увеличению стоимости основных средств | C86: Н310099
A87: Увеличение стоимости материальных запасов, всего: | B87: 340 | D87: =SUM(D88:D98) -> 0.00
A88: Закупка медикаментов, перевязочных средств (расходных материалов) | B88: 302 | C88: П341006
A89: Прочие расходы по увеличению стоимости строит.материалов | B89: 302 | C89: П344099
A90: Закупка мягкого инвентаря, одежды, обмундирования | B90: 302 | C90: П345002
A91: Закупка материалов, используемых в процессе обучения (субвенция) | B91: 302 | C91: П346004
A92: Приобретение канцелярских и хозяственных товаров | C92: П346017
A93: Прочие расходы по увеличение стоимости мат.запасов | B93: 304 | C93: П346098 | E93: 244,467.34
A94: Прочие расходы по увеличение стоимости мат.запасов (род.плата) | B94: 304 | C94: П346098
A95: Прочие расходы по увеличение стоимости мат.запасов (замена песка) | B95: 304 | C95: П346098
A96: Прочие расходы по увеличение стоимости мат.запасов (песко-соляная смесь) | B96: 304 | C96: П346098
A97: Прочие расходы по увеличение стоимости мат.запасов (род.плата) | B97: 304 | C97: Н346099
A98: Прочие расходы по увеличение стоимости мат.запасов | B98: 304 | C98: Н346099
A99: ИТОГО РАСХОДОВ: | D99: =D6+D19+D76+D82 -> 3,162,989.62
A100: в т.ч.субвенция | D100: =D8+D14+D9+D15+D85 -> 0.00
A101: в т.ч.субсидия
A102: в т.ч.мун.бюджет | D102: =D20+D29+D40+D62+D63+D65+D66+D67+D68+D69+D70+D71+D72+D73+D74+D75+D77+D78+D79+D80+D84+D86+D88+D89+D90+D92+D93+D95+D96+D98+D10+D11+D16+D17 -> 3,162,989.62
A103: в т.ч.родплата | D103: =D12+D18+D81+D94+D97+D64 -> 0.00
A104: Прочие расходы мун.бюджет | D104: =D20+D40+D61-D63-D64+D79+D80+D84+D86+D89+D90+D92+D93+D95+D96+D98 -> 100,312.98
A108: ОХРАНА | C108: П226050
A110: ВСЕГО | D110: =D99+D108 -> 3,162,989.62
